Cogmind - Beta 11 X5 --- EXPLORER MODE // 2021.06.14 @ 21:28:18 Player: Krytoss Result: Core destroyed Performance ------------- Evolutions (9) 4500 Regions Visited (30) 6000 Robots Destroyed (385) 1925 Value Destroyed (23127) 23127 Prototype IDs (54) 1080 Alien Tech Used (1) 200 Bonus (10565) 10565 TOTAL SCORE: 47397 Bonus ------- Triggered Max Security 2000 High Alert Combat Kills 1237 Follower Combat Kills 2343 Entered Garrisons 1600 Used RIF Installer 4000 Network Hubs Disabled 400 Aligned with FarCom 300 Friendly Fire -1315 Cogmind --------- Core Integrity 0/1600 Matter 300/300 Energy 100/100 System Corruption 14% Temperature Cool (0) Movement Core (50) Location -1/Command Parts ------- > --- POWER (2) -------- (None) > --- PROPULSION (8) --- (None) > --- UTILITY (13) ----- Advanced Terrain Scan Processor > --- WEAPON (3) ------- (None) > --- INVENTORY (5) ---- Energy Filter Advanced Variable Charge Gun Cooled Nova Cannon Micro-nuke Launcher Advanced Remote Datajack Peak State ------------ > --- POWER ------------ Graviton Reactor > --- PROPULSION ------- Improved Heavy Siege Treads Centrium Heavy Treads Centrium Heavy Treads > --- UTILITY ---------- Advanced Cryofiber Web Advanced Heat Sink Huge Storage Unit Experimental Optical Array Advanced Targeting Computer Centrium Medium Armor Plating Experimental System Shield Relay Coupler [NC] Relay Coupler [Swarmer] Relay Coupler [Grunt] Relay Coupler [Sentry] Relay Coupler [Hunter] > --- WEAPON ----------- Heavy Gatling Laser Advanced Variable Charge Gun Enhanced Quantum Rifle > --- INVENTORY -------- Advanced Medium Treads Biometal Medium Treads Centrium Medium Armor Plating Centrium Medium Armor Plating Phase Redirector Relay Coupler [NC] Relay Coupler [Grunt] Relay Coupler [Grunt] Relay Coupler [Grunt] Relay Coupler [Grunt] Relay Coupler [Sentry] Relay Coupler [Demolisher] Relay Coupler [Specialist] Relay Coupler [Hunter] Relay Coupler [Hunter] Advanced Variable Charge Gun Quantum Rifle Enhanced Quantum Rifle Enhanced Quantum Rifle Latent Energy Streamer Heavy Neutron Cannon Compact Tesla Bomb Launcher Improved Remote Datajack Advanced Remote Datajack Thunder Hammer [Rating: 158] Favorites ----------- Power Enhanced Nuclear Core Engine Light Angular Momentum Engine Power Core Enhanced Nuclear Core Reactor Antimatter Reactor Propulsion Armored Treads Treads Armored Treads Leg Centrium Leg Wheel Centrium Wheel Flight Unit Xenon Bombardment Thruster Utility Humpback Device Advanced Heat Sink Storage Humpback Processor Improved Targeting Computer Hackware Relay Coupler [Grunt] Protection Improved Medium Armor Plating Artifact Phase Redirector Weapon Advanced Beam Rifle Energy Gun Advanced Beam Rifle Energy Cannon Advanced Beam Cannon Ballistic Gun Assault Rifle Ballistic Cannon Flak Cannon Launcher Advanced EMP Blaster Special Weapon Improved Remote Datajack Impact Weapon Impact Mace Slashing Weapon Falx Piercing Weapon Plasma Lance Build | -11 -10 -10 -10 -9 -8 -8 -8 -8 -7 -7 -7 -7 -6 -6 -5 -5 -5 -5 -4 -4 -4 -4 -4 -3 -3 -3 -2 -2 -1 -1 ------- Run | Scr Mat Min Exi Min Mat Gar Mat Gar Fac Gar Fac Gar Fac Gar Fac Gar Fac Gar Fac Ext Cet Arc Hub Res Gar Qua Res Tes Acc Com Slots Evolved 19 | . 1 . . . 4 . . . 2 . . . 2 . 2 . . . 2 . . . . 2 . . 2 . 2 . Power 1 | . . . . . . . . . . . . . . . . . . . . . . . . . . . 1 . . . Propulsion 6 | . . . . . 2 . . . 2 . . . . . . . . . . . . . . . . . . . 2 . Utility 11 | . 1 . . . 2 . . . . . . . 2 . 1 . . . 2 . . . . 2 . . 1 . . . Weapon 1 | . . . . . . . . . . . . . . . 1 . . . . . . . . . . . . . . . Parts Attached 504 | 1 17 . 7 . 26 17 10 12 49 28 30 11 25 9 34 18 3 13 76 7 10 . 17 9 14 12 23 12 12 2 Power 27 | . 4 . . . 1 2 1 . 2 1 . . 1 . 1 . . 1 3 . . . 2 2 1 1 1 1 2 . Engine 4 | . 1 . . . . 1 1 . 1 . . . . . . . . . . . . . . . . . . . . . Core 12 | . 3 . . . 1 1 . . 1 1 . . . . . . . 1 2 . . . . 1 1 . . . . . Reactor 11 | . . . . . . . . . . . . . 1 . 1 . . . 1 . . . 2 1 . 1 1 1 2 . Propulsion 126 | . 4 . 1 . 7 5 6 5 10 6 15 2 6 . 7 4 2 . 10 . 3 . 5 3 2 2 10 4 5 2 Treads 105 | . 4 . 1 . 7 5 6 5 10 6 15 2 6 . 7 4 2 . 9 . 3 . 5 3 2 2 1 . . . Leg 5 | . . . . . . . . . . . . . . . . . . . . . . . . . . . 5 . . . Wheel 1 | . . . . . . . . . . . . . . . . . . . 1 . . . . . . . . . . . Hover . | . . . . . . . . . . . . . . . . . . . . . . . . . . . . . . . Flight 15 | . . . . . . . . . . . . . . . . . . . . . . . . . . . 4 4 5 2 Utility 153 | 1 4 . 3 . 12 5 1 4 7 5 1 3 6 2 8 9 1 8 32 4 3 . 5 2 8 4 8 3 4 . Device 54 | . 1 . 2 . 5 2 1 2 1 . . 1 3 . 5 3 . 2 14 1 1 . . . . 1 5 2 2 . Storage 11 | . 1 . 1 . 2 . . . 1 . 1 . . . 1 . . . 2 . . . . . . 1 1 . . . Processor 10 | 1 1 . . . . . . . 1 . . . 1 . . . 1 . 2 . . . 2 . . . . . 1 . Hackware 46 | . . . . . . . . . 2 3 . 1 2 2 2 4 . 5 11 1 . . 2 1 7 1 2 . . . Protection 31 | . 1 . . . 5 3 . 2 2 2 . 1 . . . 2 . 1 3 2 2 . 1 1 1 . . 1 1 . Artifact 1 | . . . . . . . . . . . . . . . . . . . . . . . . . . 1 . . . . Weapon 198 | . 5 . 3 . 6 5 2 3 30 16 14 6 12 7 18 5 . 4 31 3 4 . 5 2 3 5 4 4 1 . Energy Gun 77 | . 1 . . . . 2 1 1 12 8 6 2 4 5 6 1 . 2 17 . . . 4 2 . 1 2 . . . Energy Cannon 11 | . . . 2 . 3 1 . . . . . 1 2 . . . . . 1 . . . . . . . . 1 . . Ballistic Gun 3 | . . . . . . . . . 1 . . . . . 1 . . . . . . . . . . . . . 1 . Ballistic Cannon 17 | . 3 . 1 . 2 1 . 1 7 1 . . . . . . . 1 . . . . . . . . . . . . Launcher 23 | . 1 . . . 1 . . 1 2 4 2 1 . 1 2 1 . 1 . . 2 . . . . 3 . 1 . . Special Weapon 46 | . . . . . . . . . 4 1 6 1 3 1 6 3 . . 13 1 2 . 1 . 3 1 . . . . Impact Weapon 17 | . . . . . . 1 1 . 4 2 . 1 3 . 3 . . . . 2 . . . . . . . . . . Slashing Weapon 3 | . . . . . . . . . . . . . . . . . . . . . . . . . . . 2 1 . . Piercing Weapon 1 | . . . . . . . . . . . . . . . . . . . . . . . . . . . . 1 . . Special Melee Weapon . | . . . . . . . . . . . . . . . . . . . . . . . . . . . . . . . Unidentified Prototypes 23 | . . . 2 . 1 2 . . 4 . 1 . 1 . 1 . . . 1 . . . 1 1 . 2 2 4 . . Corrupted Parts 4 | . . . . . . . . . . . . . . . . . . . . . . . 4 . . . . . . . System Corruption 36 | . . . . . . . . . . . . . . . . . . . . . . . 36 . . . . . . . Parts Lost 43 | . . . . . . 1 . . . . . . . . 3 2 . 1 3 1 1 . 5 . 2 2 5 2 1 14 Power 6 | . . . . . . 1 . . . . . . . . . . . . . . . . 1 . 1 . . 1 . 2 Propulsion 16 | . . . . . . . . . . . . . . . 2 . . . . . 1 . 1 . . . 3 1 1 7 Utility 15 | . . . . . . . . . . . . . . . 1 1 . . 2 1 . . 1 . 1 2 2 . . 4 Weapon 6 | . . . . . . . . . . . . . . . . 1 . 1 1 . . . 2 . . . . . . 1 Highest Loss Streak 14 | . . . . . . 1 . . . . . . . . 1 2 . 1 1 1 1 . 3 . 1 1 2 1 1 14 Average Slot Usage (%) 88 | . 98 100 95 100 93 91 91 90 91 91 87 89 90 93 91 82 83 80 84 89 90 90 88 87 89 52 31 34 55 34 Engine 1 | . 3 . . . . 5 4 8 1 . . . . . . . . . . . . . . . . . . . . . Core 3 | . 8 12 12 12 7 2 3 . 5 7 7 7 1 . . . . 3 3 . . . . . 1 . . . . . Reactor 1 | . . . . . . . . . . . . . 4 6 5 5 5 1 1 5 5 5 4 3 2 2 2 4 6 2 Treads 30 | . 22 25 25 25 31 33 33 33 41 42 41 42 37 37 32 25 22 22 20 20 20 20 19 18 18 8 1 . . . Device 6 | . 7 12 12 12 12 7 8 8 6 . . 5 6 6 6 7 5 6 6 9 10 10 10 9 4 3 5 4 13 6 Storage 6 | . 12 12 12 12 9 8 8 8 7 7 7 7 6 6 5 5 5 5 4 5 5 5 5 4 4 2 . . . . Processor 7 | . 12 12 12 12 8 8 8 8 6 7 7 7 6 6 5 5 5 5 7 10 10 10 11 13 13 6 . . . 3 Hackware 10 | . . . . . . . . . 4 8 10 5 15 18 19 16 16 13 20 22 20 20 19 20 26 16 2 . . . Protection 3 | . 4 . . . 5 8 8 7 2 5 . . . . . . 5 5 4 2 5 5 4 4 4 2 . . . . Energy Gun 8 | . 2 . . . . 9 15 8 7 11 8 8 3 5 11 9 11 14 11 5 5 5 9 12 9 6 . . . . Energy Cannon 1 | . . . 1 12 9 . . . . . . . 4 4 . . . . . 5 5 5 . . . . . . . . Ballistic Cannon 2 | . 12 12 6 . 5 5 . 7 4 . . . . . . . . . . . . . . . . . . . . . Special Weapon 1 | . . . . . . . . . . . 4 . 2 . 4 4 5 . 2 2 2 5 3 . 3 2 . . . . Naked Turns 88 | . . . . . . . . . . . . . . . . . . . . . . . . . . 71 17 . . . Heaviest Build 239 | 17 34 33 33 33 219 223 222 231 227 223 216 222 224 228 231 235 234 237 239 125 126 125 125 124 122 120 38 23 62 42 Greatest Support 235 | 20 40 40 40 40 80 80 80 80 130 144 152 152 160 160 167 187 194 194 202 202 202 202 217 222 222 235 38 47 62 45 Greatest Overweight (x) 2 | . 1 . . . 2 2 2 2 1 1 2 1 1 1 1 1 1 1 1 . . . . . . . 1 . 1 . Average Overweight (x) . | . . . . . . 2 2 2 1 1 1 1 1 1 1 1 1 1 . . . . . . . . . . . . Largest Inventory Capacity 35 | 10 15 15 15 15 35 35 35 35 35 35 35 35 35 35 35 35 35 35 35 25 25 25 25 25 25 25 15 5 5 5 Average Capacity 31 | 10 14 15 15 15 23 35 35 35 35 35 35 35 35 35 35 35 35 35 31 25 25 25 25 25 25 18 7 5 5 5 Most Carried 35 | 7 15 15 15 15 31 35 35 35 35 35 35 35 35 35 35 35 35 35 35 25 25 23 25 25 25 25 6 5 5 5 Average Carried 30 | 7 13 15 14 15 18 34 34 34 34 34 34 34 34 34 33 34 35 34 31 24 23 23 24 24 24 18 4 4 4 5 Final Capacity 35 | 10 15 15 15 15 35 35 35 35 35 35 35 35 35 35 35 35 35 35 25 25 25 25 25 25 25 5 5 5 5 5 Final Carried 35 | 7 15 15 15 15 31 35 35 35 35 35 33 35 35 35 31 35 35 35 25 25 23 23 21 25 25 5 5 4 5 5 Class Distribution -------------------- 42% | Botlord-Mutant 21% | Hauler-Mutant 18% | Bothacker-Mutant 7% | Botlord-Skirmisher 6% | Hacker-Mutant Dominant Class ---------------- Hacker-Mutant | -10/Materials Hacker-Mutant | -10/Mines Hacker-Mutant | -10/Exiles Hacker-Mutant | -9/Mines Hauler-Mutant | -8/Materials Hauler-Mutant | -8/Garrison Hauler-Mutant | -8/Materials Hauler-Mutant | -8/Garrison Bothacker-Mutant | -7/Factory Bothacker-Mutant | -7/Garrison Bothacker-Mutant | -7/Factory Botlord-Mutant | -7/Garrison Botlord-Mutant | -6/Factory Botlord-Mutant | -6/Garrison Botlord-Mutant | -5/Factory Botlord-Mutant | -5/Garrison Botlord-Mutant | -5/Factory Botlord-Skirmisher | -5/Garrison Botlord-Mutant | -4/Factory Botlord-Mutant | -4/Extension Botlord-Mutant | -4/Cetus Botlord-Mutant | -4/Archives Botlord-Mutant | -4/Hub_04(d) Botlord-Mutant | -3/Research Botlord-Mutant | -3/Garrison Botlord-Mutant | -3/Quarantine Hacker-Mutant | -2/Research Hacker-Mutant | -2/Testing Scavenger-Scout | -1/Access Scavenger-Scout | -1/Command Resources | -11 -10 -10 -10 -9 -8 -8 -8 -8 -7 -7 -7 -7 -6 -6 -5 -5 -5 -5 -4 -4 -4 -4 -4 -3 -3 -3 -2 -2 -1 -1 ----------- Run | Scr Mat Min Exi Min Mat Gar Mat Gar Fac Gar Fac Gar Fac Gar Fac Gar Fac Gar Fac Ext Cet Arc Hub Res Gar Qua Res Tes Acc Com Matter Collected 8552 | 210 450 . . 88 360 492 100 356 748 502 360 199 317 133 491 404 84 288 1055 268 213 45 219 146 349 220 154 . 281 20 Remotely . | . . . . . . . . . . . . . . . . . . . . . . . . . . . . . . . Salvage Created 16831 | . 479 . . 31 856 886 471 781 1770 1003 194 202 469 549 1380 677 . 758 3486 397 442 57 542 174 716 281 88 . 142 . Parts 793 | . 32 . . . 51 48 25 35 96 46 14 18 19 28 74 29 . 40 127 13 20 . 23 7 24 14 3 . 7 . Haulers Intercepted 13 | . 2 . . . 3 . 1 . 3 . . . . . . . . . 2 . . . 1 . . . 1 . . . Recyclers Shooed 11 | . 2 . . . 2 . . . 1 . . . 1 . 1 . . . 4 . . . . . . . . . . . Parts Field Recycled . | . . . . . . . . . . . . . . . . . . . . . . . . . . . . . . . Retrieved Matter . | . . . . . . . . . . . . . . . . . . . . . . . . . . . . . . . Parts Self-Destructed . | . . . . . . . . . . . . . . . . . . . . . . . . . . . . . . . Prevented . | . . . . . . . . . . . . . . . . . . . . . . . . . . . . . . . Kills | -11 -10 -10 -10 -9 -8 -8 -8 -8 -7 -7 -7 -7 -6 -6 -5 -5 -5 -5 -4 -4 -4 -4 -4 -3 -3 -3 -2 -2 -1 -1 ------- Run | Scr Mat Min Exi Min Mat Gar Mat Gar Fac Gar Fac Gar Fac Gar Fac Gar Fac Gar Fac Ext Cet Arc Hub Res Gar Qua Res Tes Acc Com Combat Hostiles Destroyed 339 | . 8 . . 6 20 31 9 20 34 25 5 8 9 18 21 13 . 19 46 6 9 1 7 3 13 5 . . 3 . Melee 4 | . . . . . . . 1 . . . . . . . . . . . . . . . . . . . . . 3 . Guns 203 | . 8 . . . . 15 7 9 18 19 5 4 4 6 19 9 . 19 31 2 4 . 7 3 12 2 . . . . Cannons 84 | . . . . 4 20 16 . 9 12 . . . 5 9 . . . . 3 4 1 1 . . . . . . . . AOE 24 | . . . . 2 . . . 2 2 5 . 4 . 2 . 4 . . . . . . . . . 3 . . . . Classes Destroyed 21 | . 5 . . 1 3 1 2 . 4 2 . . . . . 1 . 1 1 . . . . . . . . . . . Worker 5 | . . . . . . . . . 1 . . . 2 . . . . . 2 . . . . . . . . . . . Builder 10 | . 1 . . . 1 . . . 6 . . . . . . . . . 1 . . . 1 . . . . . . . Tunneler 3 | . . . . . 1 . . . . . . . . . . . . . 1 . . . 1 . . . . . . . Hauler 13 | . 2 . . . 3 . 1 . 3 . . . . . . . . . 2 . . . 1 . . . 1 . . . Recycler 14 | . 3 . . . 2 . . . 2 . . . . . 1 . . . 5 1 . . . . . . . . . . Mechanic 1 | . . . . . . . . . 1 . . . . . . . . . . . . . . . . . . . . . Operator 1 | . . . . . . . . . . . . . . . . . . . 1 . . . . . . . . . . . Watcher 4 | . . . . . . . . . 1 . . . . . 1 . . . . . 1 . . . . . . . 1 . Swarmer 118 | . 4 . . . 11 11 . 4 5 13 3 6 . 15 3 4 . 15 10 2 3 . 1 . 5 . . . 3 . Saboteur 2 | . . . . . . . . . . . . . . . . 1 . . . . . . . . . 1 . . . . Grunt 87 | . 4 . . . 2 14 5 11 16 6 . . 2 2 2 8 . . 5 1 2 . . . 5 2 . . . . Brawler 4 | . . . . . . 2 1 . . 1 . . . . . . . . . . . . . . . . . . . . Duelist 5 | . . . . . . . 1 . . 1 . . . . . 1 . . 2 . . . . . . . . . . . Protector 1 | . . . . . . . 1 . . . . . . . . . . . . . . . . . . . . . . . Sentry 34 | . . . . . 6 4 1 4 1 1 1 . 4 1 2 . . 1 4 . . 1 1 . 2 . . . . . Demolisher 1 | . . . . . . . . . . . . . . . . . . 1 . . . . . . . . . . . . Specialist 4 | . . . . . . . . . . 2 . . . . 2 . . . . . . . . . . . . . . . Hunter 15 | . . . . . 1 . . 1 2 . . . . . 4 . . 1 2 1 . . 1 . 2 . . . . . Programmer 57 | . . . . . . . . . 10 . 1 2 3 . 8 . . . 23 1 . . 4 3 . 2 . . . . Behemoth 4 | . . . . . . . . . . 1 . . . . . . . 1 . 2 . . . . . . . . . . Cetus Guard 4 | . . . . . . . . . . . . . . . . . . . . . 4 . . . . . . . . . Assembled 6 | . . . . 6 . . . . . . . . . . . . . . . . . . . . . . . . . . Best Kill Streak 10 | . 4 . . 5 3 6 4 4 10 3 3 4 2 5 4 5 . 6 6 3 5 1 4 3 3 3 1 . 4 . Combat Bots Only 6 | . 4 . . 5 3 6 4 4 5 3 3 4 1 5 4 5 . 6 6 3 5 1 4 3 3 3 . . 3 . Max Kills in Single Turn 7 | . 2 . . 2 2 1 1 3 7 2 1 4 1 2 2 4 . 1 2 1 2 1 2 1 1 3 1 . 1 . Gunslinging 1 | . . . . . . . . . . . . . . . 1 . . . 1 . . . 1 . . . . . . . Exploded 4 | . . . . 2 . . . 2 2 2 . 4 . 2 . 4 . . . . . . . . . 3 . . . . Melee 1 | . . . . . . . 1 . . . . . . . . . . . . . . . . . . . . . 1 . Uniques/NPCs Destroyed . | . . . . . . . . . . . . . . . . . . . . . . . . . . . . . . . Combat | -11 -10 -10 -10 -9 -8 -8 -8 -8 -7 -7 -7 -7 -6 -6 -5 -5 -5 -5 -4 -4 -4 -4 -4 -3 -3 -3 -2 -2 -1 -1 -------- Run | Scr Mat Min Exi Min Mat Gar Mat Gar Fac Gar Fac Gar Fac Gar Fac Gar Fac Gar Fac Ext Cet Arc Hub Res Gar Qua Res Tes Acc Com Damage Taken 22514 | . 150 . . 54 508 990 644 541 1322 581 184 343 469 376 1914 433 . 610 2598 940 569 55 2331 395 639 1864 1057 549 89 2309 Core 4373 | . 16 . . 15 68 93 53 18 48 44 30 10 42 46 74 11 . 18 182 19 26 . 323 29 39 1227 196 134 13 1599 Absorbed by Shields 398 | . . . . . . . . 18 . 51 . 13 . 24 . 7 . 51 . . . . . . 74 . 40 . . 120 Reduced by Siege Mode 129 | . . . . . . . . . . . . . . . . . . . 50 . 25 . 18 36 . . . . . . Redirected to Core 6 | . . . . . . . . . . . . . . . . . . . . . . . . . . 6 . . . . Core Remaining (%) 70 | 100 . . . 87 . . . 57 . . . 81 . 89 . . . 89 . . . . 52 . . . . 77 . . Volleys Fired 1226 | . 48 2 . 6 47 62 24 135 98 69 19 25 52 34 82 48 4 41 216 26 29 11 36 13 74 21 4 . . . Largest 3 | . 2 1 . 2 2 2 2 2 2 2 2 2 2 2 3 3 1 3 3 2 3 2 2 3 2 3 1 . . . Hottest 450 | . 85 39 . 98 136 116 116 116 122 141 141 141 145 150 193 450 40 380 380 186 235 186 450 315 340 274 80 . . . Shots Fired 2061 | . 91 2 . 7 93 121 48 179 174 113 24 32 70 48 154 83 6 107 380 44 48 13 61 23 102 34 4 . . . Gun 1452 | . 54 . . . . 59 48 145 110 91 12 27 21 24 131 74 2 102 321 18 18 2 49 23 93 24 4 . . . Cannon 416 | . 37 2 . 6 93 62 . 33 50 . . 2 34 18 . . . 2 34 17 19 7 . . . . . . . . Launcher 46 | . . . . 1 . . . 1 6 19 . 1 . 3 3 1 . . . . 8 . . . . 3 . . . . Special 147 | . . . . . . . . . 8 3 12 2 15 3 20 8 4 3 25 9 3 4 12 . 9 7 . . . . Kinetic 250 | . 81 2 . . 24 48 . 33 50 . . . . . 10 . . 2 . . . . . . . . . . . . Thermal 1618 | . 10 . . 6 69 73 48 145 110 91 12 29 55 42 121 74 2 102 355 35 37 9 49 23 93 24 4 . . . Explosive 1 | . . . . 1 . . . . . . . . . . . . . . . . . . . . . . . . . . Electromagnetic 45 | . . . . . . . . 1 6 19 . 1 . 3 3 1 . . . . 8 . . . . 3 . . . . Robot Hit Streak 63 | . 30 . . 4 31 27 12 63 48 45 17 19 23 41 52 33 33 52 49 52 38 45 29 56 60 56 7 . . . Robot Miss Streak 3 | . 2 . . 1 3 2 1 2 2 2 1 1 2 1 2 1 . 2 2 1 . 1 1 . 2 2 . . . . Penetration Max . | . . . . . . . . . . . . . . . . . . . . . . . . . . . . . . . Secondary Targets 21 | . . . . . . 1 2 . 1 1 . . . 3 5 . . 1 6 . . . 1 . . . . . . . Max Gunslinging Chain 1 | . . . . . . 1 1 . 1 1 . . . 1 1 . . 1 1 . . . 1 . . . . . . . Shots Hit Robots 1534 | . 77 . . 5 71 83 36 91 149 87 20 17 56 37 134 64 5 70 283 36 34 10 52 17 63 28 4 . 5 . Core Hits 785 | . 19 . . 7 46 96 19 71 71 55 6 12 24 23 47 27 1 29 91 11 21 3 27 8 38 27 2 . 4 . Critical Kills 6 | . . . . . . . . . . . . . . . 3 . . 1 1 1 . . . . . . . . . . Critical Parts Destroyed 10 | . . . . . . . . . . . . . . . 5 1 . . 4 . . . . . . . . . . . Critical Strikes 84 | . 4 . . . . . 8 5 16 5 . 2 . 3 10 1 . 6 20 4 . . . . . . . . . . Burn 61 | . . . . . . . 8 5 15 5 . 2 . 3 1 . . 4 15 3 . . . . . . . . . . Meltdown 1 | . . . . . . . . . . . . . . . . . . . . 1 . . . . . . . . . . Destroy 17 | . . . . . . . . . . . . . . . 9 1 . 2 5 . . . . . . . . . . . Blast 5 | . 4 . . . . . . . 1 . . . . . . . . . . . . . . . . . . . . . Melee Attacks 61 | . . . . . . 2 2 . 11 7 . 3 9 2 6 . . . . 11 . . . . . . 1 1 6 . Impact 53 | . . . . . . 2 2 . 11 7 . 3 9 2 6 . . . . 11 . . . . . . . . . . Slashing 8 | . . . . . . . . . . . . . . . . . . . . . . . . . . . 1 1 6 . Piercing . | . . . . . . . . . . . . . . . . . . . . . . . . . . . . . . . Sneak Attacks 2 | . . . . . . . . . . . . . 1 . . . . . . 1 . . . . . . . . . . Combat Hostiles . | . . . . . . . . . . . . . . . . . . . . . . . . . . . . . . . Follow-up Attacks . | . . . . . . . . . . . . . . . . . . . . . . . . . . . . . . . Damage Inflicted 40624 | . 1278 . . 165 1576 1969 762 2271 3964 2409 186 552 1213 957 3212 1599 30 1581 7038 961 1541 200 1978 714 1996 2087 122 . 232 31 Guns 27087 | . 594 . . . . 859 702 1350 2068 1696 186 358 569 407 2870 1430 30 1581 6715 351 409 24 1302 714 1996 754 122 . . . Cannons 8002 | . 684 . . 84 1576 1110 . 864 1106 . . 28 554 461 . . . . 323 495 541 176 . . . . . . . . Explosions 4986 | . . . . 81 . . . 57 790 713 . 166 . 89 342 169 . . . . 591 . 676 . . 1312 . . . . Melee 461 | . . . . . . . 42 . . . . . 72 . . . . . . 115 . . . . . . . . 232 . Ramming 88 | . . . . . . . 18 . . . . . 18 . . . . . . . . . . . . 21 . . . 31 Kinetic 4746 | . 1132 . . . 405 1007 . 864 1106 . . . . . 232 . . . . . . . . . . . . . . . Thermal 31500 | . 146 . . 84 1171 962 702 1350 2426 1696 186 386 1123 868 2638 1524 30 1581 7038 846 950 200 1555 714 1996 1206 122 . . . Explosive 147 | . . . . 81 . . . . . . . 66 . . . . . . . . . . . . . . . . . . Electromagnetic 3682 | . . . . . . . . 57 432 713 . 100 . 89 342 75 . . . . 591 . 423 . . 860 . . . . Impact 229 | . . . . . . . 42 . . . . . 72 . . . . . . 115 . . . . . . . . . . Slashing 232 | . . . . . . . . . . . . . . . . . . . . . . . . . . . . . 232 . Piercing . | . . . . . . . . . . . . . . . . . . . . . . . . . . . . . . . Highest Corruption 70 | . . . . . . . 1 1 2 2 2 4 1 1 9 9 9 9 10 11 11 11 70 4 4 6 5 7 . 14 Average Corruption 4 | . . . . . . . 1 1 1 2 2 3 1 1 4 9 9 9 6 10 11 11 12 3 4 5 1 6 . 7 Corruption Purged . | . . . . . . . . . . . . . . . . . . . . . . . . . . . . . . . Effects 584 | . . . . . . . 2 7 10 25 11 46 3 9 36 68 17 67 123 43 20 10 27 3 44 6 4 2 . 1 Message Errors 165 | . . . . . . . 1 2 6 7 6 17 2 6 11 13 5 16 28 14 4 2 8 2 10 2 2 . . 1 Matter Fused 117 | . . . . . . . . . . . . 12 . . 9 16 4 15 30 7 4 1 8 . 9 . . 2 . . Heat Flow Errors 77 | . . . . . . . . . 1 6 1 4 . . 6 15 1 6 15 6 1 1 3 . 11 . . . . . Energy Discharges 78 | . . . . . . . 1 1 2 3 4 8 . 1 2 12 3 12 12 3 6 2 3 . 3 . . . . . Parts Rejected 6 | . . . . . . . . . . . . . . . 1 . . 1 2 . 1 . . . . 1 . . . . Data Loss (minor) 96 | . . . . . . . . 4 1 9 . 5 1 2 3 6 1 9 21 11 2 . 4 1 11 3 2 . . . Data Loss (major) 17 | . . . . . . . . . . . . . . . 1 2 1 3 7 . 1 2 . . . . . . . . Misfires 15 | . . . . . . . . . . . . . . . 2 1 2 4 3 1 . 1 1 . . . . . . . Misdirections 2 | . . . . . . . . . . . . . . . . . . . . 1 1 . . . . . . . . . Weapon Failures 11 | . . . . . . . . . . . . . . . 1 3 . 1 5 . . 1 . . . . . . . . Overload Shots 102 | . . . . . . . . . . . . . . . . 2 . 3 48 . . . 19 8 21 1 . . . . Effects 6 | . . . . . . . . . . . . . . . . . . . 2 . . . 1 . 2 1 . . . . Energy Bleed 1 | . . . . . . . . . . . . . . . . . . . . . . . . . . 1 . . . . Heat Surge 3 | . . . . . . . . . . . . . . . . . . . . . . . 1 . 2 . . . . . Meltdown 2 | . . . . . . . . . . . . . . . . . . . 2 . . . . . . . . . . . Overflow Damage 298 | . 19 . . . 28 . . . 92 . . . 67 7 . . . . 34 3 . . 22 . . 23 . . 3 . Projectiles 157 | . 19 . . . 28 . . . 31 . . . 35 7 . . . . 34 3 . . . . . . . . . . Explosions 106 | . . . . . . . . . 61 . . . . . . . . . . . . . 22 . . 23 . . . . Melee 35 | . . . . . . . . . . . . . 32 . . . . . . . . . . . . . . . 3 . Knockbacks 47 | . 6 . . . 6 22 . 7 6 . . . . . . . . . . . . . . . . . . . . . Impact . | . . . . . . . . . . . . . . . . . . . . . . . . . . . . . . . Kinetic 43 | . 6 . . . 6 19 . 6 6 . . . . . . . . . . . . . . . . . . . . . Secondary 4 | . . . . . . 3 . 1 . . . . . . . . . . . . . . . . . . . . . . Self-Inflicted Damage 238 | . . . . . . . . . 44 21 . . . . 1 . . . . . . . 136 . . 23 . . . 13 Shots 8 | . . . . . . . . . 1 2 . . . . 1 . . . . . . . 2 . . 2 . . . . Rammed 21 | . . . . . 1 . 1 . . . . . 2 . . . . . . . . . . . . 7 . . . 10 Targets Rammed 22 | . . . . . 1 . 2 . . . . . 2 . . . . . . . . . . . . 7 . . . 10 Kicked . | . . . . . . . . . . . . . . . . . . . . . . . . . . . . . . . Crushed 1 | . . . . . . . 1 . . . . . . . . . . . . . . . . . . . . . . . Highest Temperature 598 | . 228 2 . 96 246 270 180 180 56 300 169 172 18 12 360 330 168 263 355 232 259 20 566 328 598 . 31 34 315 31 Average Temperature 94 | . 72 1 . 37 56 60 52 45 6 97 40 54 12 5 77 81 74 98 124 108 107 20 184 175 167 . 17 18 126 17 Received Heat Transfer 5071 | . 90 . . . 126 729 486 417 612 140 15 33 201 66 144 295 . 21 274 90 66 9 84 . 82 569 144 117 9 252 Effects 12 | . . . . . . . . . . . . . . . . . . 1 1 . . . . 3 6 . . . 1 . Shutdowns 1 | . . . . . . . . . . . . . . . . . . . . . . . . . . . . . 1 . Energy Bleed 2 | . . . . . . . . . . . . . . . . . . 1 . . . . . 1 . . . . . . Interference 3 | . . . . . . . . . . . . . . . . . . . 1 . . . . 2 . . . . . . Matter Decay 2 | . . . . . . . . . . . . . . . . . . . . . . . . . 2 . . . . . Damage (major) 4 | . . . . . . . . . . . . . . . . . . . . . . . . . 4 . . . . . Siege Activations 10 | . . . . . . . . . . . . . . . . . . . 3 1 2 1 2 1 . . . . . . Total Turns 145 | . . . . . . . . . . . . . . . . . . . 61 12 16 5 29 22 . . . . . . Longest Duration 25 | . . . . . . . . . . . . . . . . . . . 21 12 12 5 25 22 . . . . . . Robots Corrupted 7 | . . . . . . . . . 1 1 . . . . . . . . . . 4 . 1 . . . . . . . Combat Hostiles 6 | . . . . . . . . . 1 1 . . . . . . . . . . 4 . . . . . . . . . Parts Fried 14 | . . . . . . . . . 1 3 . . 2 . 2 . . . . . 6 . . . . . . . . . Impact Corruptions 1 | . . . . . . . . . . . . . 1 . . . . . . . . . . . . . . . . . Robots Melted 19 | . . . . . . . 1 . 1 . . . . 1 2 . . . 12 1 . . . . 1 . . . . . Combat Hostiles 18 | . . . . . . . 1 . 1 . . . . 1 2 . . . 12 . . . . . 1 . . . . . Parts Melted 172 | . 2 . . . 2 4 5 3 16 6 . 3 12 3 16 2 . 6 74 3 . 1 2 7 4 1 . . . . Heat Transferred 53312 | . 333 . . 148 2109 1793 1738 2278 5086 3508 346 817 1903 1800 3897 1635 37 2967 13525 1221 1184 222 1762 770 2807 1278 148 . . . Parts Sabotaged 8 | . . . . . . . . . . . . . . . . 3 . . . . . . . . . 3 . . . 2 Parts Stolen . | . . . . . . . . . . . . . . . . . . . . . . . . . . . . . . . Parts Stripped . | . . . . . . . . . . . . . . . . . . . . . . . . . . . . . . . Power Chain Reactions 7 | . . . . . . . . . 3 . . 1 . . . 1 . . . . . . 1 . . 1 . . . . Missiles Intercepted . | . . . . . . . . . . . . . . . . . . . . . . . . . . . . . . . Alert | -11 -10 -10 -10 -9 -8 -8 -8 -8 -7 -7 -7 -7 -6 -6 -5 -5 -5 -5 -4 -4 -4 -4 -4 -3 -3 -3 -2 -2 -1 -1 ------- Run | Scr Mat Min Exi Min Mat Gar Mat Gar Fac Gar Fac Gar Fac Gar Fac Gar Fac Gar Fac Ext Cet Arc Hub Res Gar Qua Res Tes Acc Com Peak Influence 1965 | . 178 7 . 30 235 1319 700 880 657 817 415 601 293 468 428 441 171 495 275 118 148 83 422 220 452 1965 1328 1641 1260 1317 Initial 1100 | . . 7 . . 8 7 471 155 343 37 318 32 234 . 182 3 171 . 192 15 16 . 19 152 . 190 1100 456 1100 617 Average 287 | . 69 7 . 13 56 826 469 596 219 394 114 348 69 217 111 234 147 303 56 48 67 64 98 132 145 1671 1134 1602 1186 804 Maximum Alert Level 5 | . . . . . 1 4 3 3 2 3 2 2 1 2 2 2 . 2 1 . . . 2 1 2 5 4 5 4 4 Low Security (%) 55 | 100 100 100 . 100 96 7 . 5 51 39 77 12 80 44 81 35 100 24 97 100 100 100 83 90 71 . . . . . Level 1 17 | . . . . . 3 14 31 18 29 4 19 42 19 42 16 45 . 34 2 . . . 12 9 24 . . . . . Level 2 15 | . . . . . . 13 64 41 18 35 2 45 . 12 1 19 . 40 . . . . 3 . 4 . . . . 62 Level 3 7 | . . . . . . 42 3 34 . 19 . . . . . . . . . . . . . . . . 24 . . 10 Level 4 3 | . . . . . . 22 . . . . . . . . . . . . . . . . . . . . 75 . 100 26 Level 5 . | . . . . . . . . . . . . . . . . . . . . . . . . . . . . . . . High Security . | . . . . . . . . . . . . . . . . . . . . . . . . . . . . . . . Max Security . | . . . . . . . . . . . . . . . . . . . . . . . . . . 99 . 99 . . Squads Dispatched 88 | . . . . . . . 3 . 14 . 4 . 7 . 7 . 1 . 21 2 . . 6 1 . 12 3 6 1 . Investigation 8 | . . . . . . . 1 . 1 . . . . . 1 . . . 3 1 . . 1 . . . . . . . Extermination 31 | . . . . . . . . . 7 . 3 . 4 . 2 . . . 12 . . . 2 1 . . . . . . Reinforcement 20 | . . . . . . . 1 . 5 . 1 . 3 . 4 . . . 2 1 . . 1 . . . 1 . 1 . Assault 23 | . . . . . . . 1 . . . . . . . . . . . 1 . . . 1 . . 12 2 6 . . Garrison 6 | . . . . . . . . . 1 . . . . . . . 1 . 3 . . . 1 . . . . . . . Intercept . | . . . . . . . . . . . . . . . . . . . . . . . . . . . . . . . Construction Impeded 4 | . . . . . . . . . 2 . . . . . 1 . . . . . . . 1 . . . . . . . Haulers Reinforced 1 | . . . . . . . . . . . . . . . . . . . 1 . . . . . . . . . . . Cargo Convoy Interrupts 2 | . . . . . . . . . 1 . . . . . 1 . . . . . . . . . . . . . . . Stealth | -11 -10 -10 -10 -9 -8 -8 -8 -8 -7 -7 -7 -7 -6 -6 -5 -5 -5 -5 -4 -4 -4 -4 -4 -3 -3 -3 -2 -2 -1 -1 --------- Run | Scr Mat Min Exi Min Mat Gar Mat Gar Fac Gar Fac Gar Fac Gar Fac Gar Fac Gar Fac Ext Cet Arc Hub Res Gar Qua Res Tes Acc Com Distress Signals 22 | . 1 . . . 4 . 1 . . . . . . . 3 . . . 2 1 2 . 3 . . 1 3 . . 1 Communications Jammed . | . . . . . . . . . . . . . . . . . . . . . . . . . . . . . . . Distress Signals . | . . . . . . . . . . . . . . . . . . . . . . . . . . . . . . . Times Spotted 782 | . 17 . . 6 34 33 21 25 40 26 12 16 19 19 46 23 1 22 66 23 12 7 36 3 31 54 28 29 10 123 Peak Tracking Total 116 | . 6 . . 2 6 9 5 5 5 3 4 3 3 5 13 5 1 5 5 5 5 3 15 3 6 29 19 27 6 116 Tactical Retreats 38 | . . . . 1 1 4 . 1 1 2 . . . 1 . 1 . 2 1 . . . . . 4 5 7 1 2 4 Traps | -11 -10 -10 -10 -9 -8 -8 -8 -8 -7 -7 -7 -7 -6 -6 -5 -5 -5 -5 -4 -4 -4 -4 -4 -3 -3 -3 -2 -2 -1 -1 ------- Run | Scr Mat Min Exi Min Mat Gar Mat Gar Fac Gar Fac Gar Fac Gar Fac Gar Fac Gar Fac Ext Cet Arc Hub Res Gar Qua Res Tes Acc Com Traps Triggered 83 | . 2 . . . 1 11 . 5 3 17 3 3 1 2 . 9 . 10 4 3 . . 2 . 1 1 2 . . 3 Indirectly 3 | . . . . . . . . . . 2 . . . . . . . . . . . . 1 . . . . . . . Trap Hack Attempts . | . . . . . . . . . . . . . . . . . . . . . . . . . . . . . . . Triggered . | . . . . . . . . . . . . . . . . . . . . . . . . . . . . . . . Disarmed 6 | . . . . . . . . . . . . . . . . . . . . 6 . . . . . . . . . . Reprogrammed . | . . . . . . . . . . . . . . . . . . . . . . . . . . . . . . . Reused . | . . . . . . . . . . . . . . . . . . . . . . . . . . . . . . . Traps Extracted . | . . . . . . . . . . . . . . . . . . . . . . . . . . . . . . . Installed . | . . . . . . . . . . . . . . . . . . . . . . . . . . . . . . . Triggered 1 | . . . . . . . . . 1 . . . . . . . . . . . . . . . . . . . . . Exploded 1 | . . . 1 . . . . . . . . . . . . . . . . . . . . . . . . . . . Machines | -11 -10 -10 -10 -9 -8 -8 -8 -8 -7 -7 -7 -7 -6 -6 -5 -5 -5 -5 -4 -4 -4 -4 -4 -3 -3 -3 -2 -2 -1 -1 ---------- Run | Scr Mat Min Exi Min Mat Gar Mat Gar Fac Gar Fac Gar Fac Gar Fac Gar Fac Gar Fac Ext Cet Arc Hub Res Gar Qua Res Tes Acc Com Machines Disabled 90 | . 1 . . . 1 6 1 4 16 7 . 6 . 6 1 4 . 4 7 1 1 3 14 . 4 2 . 1 . . Max in Single Turn 11 | . 1 . . . 1 2 . 1 11 1 . 2 . 2 1 1 . 1 6 1 1 . 8 . 1 1 . 1 . . Garrison Access 4 | . . . . . . . . . . . . . . . 1 . . . 1 . . . 1 . . . 1 . . . Garrison Relay 32 | . . . . . . 4 . 4 . 4 . 4 . 4 . 4 . 4 . . . . . . 4 . . . . . Phase Generator 2 | . . . . . . 1 . . . . . 1 . . . . . . . . . . . . . . . . . . Network Hub 2 | . . . . . . . . . . . . . . . . . . . . . . . 2 . . . . . . . Machines Sabotaged . | . . . . . . . . . . . . . . . . . . . . . . . . . . . . . . . Garrisons Compromised 1 | . . . . . . . . . 1 . . . . . . . . . . . . . . . . . . . . . Overloaded Fab Kills . | . . . . . . . . . . . . . . . . . . . . . . . . . . . . . . . Fab Network Shutdowns . | . . . . . . . . . . . . . . . . . . . . . . . . . . . . . . . Hacking | -11 -10 -10 -10 -9 -8 -8 -8 -8 -7 -7 -7 -7 -6 -6 -5 -5 -5 -5 -4 -4 -4 -4 -4 -3 -3 -3 -2 -2 -1 -1 --------- Run | Scr Mat Min Exi Min Mat Gar Mat Gar Fac Gar Fac Gar Fac Gar Fac Gar Fac Gar Fac Ext Cet Arc Hub Res Gar Qua Res Tes Acc Com Machines Accessed 102 | . 8 . 1 . 11 . 2 . 11 . 7 . 5 . 6 . 1 . 16 9 2 1 9 3 . . 2 . 6 2 Terminals 63 | . 7 . . . 7 . 1 . 5 . . . 2 . 3 . . . 9 9 2 . 9 1 . . 1 . 6 1 Fabricators 10 | . . . . . . . . . 2 . 2 . 2 . 1 . . . 3 . . . . . . . . . . . Repair Stations 9 | . 1 . . . 1 . . . 1 . 2 . . . . . . . 3 . . . . . . . . . . 1 Recycling Units . | . . . . . . . . . . . . . . . . . . . . . . . . . . . . . . . Scanalyzers 8 | . . . . . 2 . . . 2 . 2 . . . . . . . 1 . . . . 1 . . . . . . Garrison Access 10 | . . . . . 1 . 1 . 1 . 1 . 1 . 2 . 1 . . . . . . 1 . . 1 . . . Total Hacks 274 | . 31 . 1 . 28 . 3 . 30 . 19 . 13 . 15 . 1 . 38 15 5 25 19 10 . . 4 . 14 3 Successful 180 | . 19 . 1 . 20 . 1 . 22 . 15 . 9 . 13 . 1 . 16 10 5 25 12 6 . . 1 . 4 . Failed 94 | . 12 . . . 8 . 2 . 8 . 4 . 4 . 2 . . . 22 5 . . 7 4 . . 3 . 10 3 Catastrophic 13 | . 2 . . . . . 1 . 1 . . . 1 . 2 . . . 1 . . . 1 1 . . . . 1 2 Database Lockouts . | . . . . . . . . . . . . . . . . . . . . . . . . . . . . . . . Manual 72 | . 22 . 1 . 11 . 2 . 3 . 1 . 4 . 4 . . . 8 3 . . 4 2 . . 3 . 2 2 Terminals 164 | . 28 . . . 18 . 2 . 11 . . . 8 . 10 . . . 23 15 5 . 19 6 . . 3 . 14 2 Fabricators 28 | . . . . . . . . . 5 . 9 . 4 . 2 . . . 8 . . . . . . . . . . . Repair Stations 22 | . 3 . . . 4 . . . 4 . 4 . . . . . . . 6 . . . . . . . . . . 1 Recycling Units . | . . . . . . . . . . . . . . . . . . . . . . . . . . . . . . . Scanalyzers 23 | . . . . . 5 . . . 9 . 5 . . . . . . . 1 . . . . 3 . . . . . . Garrison Access 11 | . . . . . 1 . 1 . 1 . 1 . 1 . 3 . 1 . . . . . . 1 . . 1 . . . Terminal Hacks 102 | . 16 . 1 . 9 . . . 3 . . . 5 . 7 . . . 9 7 5 25 10 1 . . . . 4 . Record 31 | . . . 1 . . . . . . . . . . . . . . . . . 4 25 1 . . . . . . . Part Schematic 3 | . . . . . 2 . . . . . . . 1 . . . . . . . . . . . . . . . . . Robot Analysis 1 | . . . . . 1 . . . . . . . . . . . . . . . . . . . . . . . . . Prototype ID Bank 12 | . 10 . . . 1 . . . . . . . . . . . . . . . . . 1 . . . . . . . Open Door 10 | . . . . . . . . . . . . . . . . . . . 1 5 1 . . . . . . . 3 . Level Access Points 1 | . . . . . . . . . . . . . . . . . . . . . . . . . . . . . 1 . Branch Access Points 3 | . 1 . . . . . . . . . . . . . . . . . 1 . . . . 1 . . . . . . Terminal Index 1 | . . . . . . . . . . . . . . . . . . . 1 . . . . . . . . . . . Fabricator Index 1 | . . . . . . . . . . . . . . . . . . . 1 . . . . . . . . . . . Garrison Index 5 | . . . . . 1 . . . 1 . . . 1 . 2 . . . . . . . . . . . . . . . Locate Traps 10 | . 2 . . . 2 . . . 1 . . . 1 . 1 . . . 2 . . . 1 . . . . . . . Disarm Traps 1 | . . . . . . . . . . . . . . . . . . . . 1 . . . . . . . . . . Security Status 1 | . 1 . . . . . . . . . . . . . . . . . . . . . . . . . . . . . Patrol Status 1 | . 1 . . . . . . . . . . . . . . . . . . . . . . . . . . . . . Recall Extermination 1 | . . . . . . . . . . . . . . . . . . . 1 . . . . . . . . . . . Recall Reinforcements 1 | . . . . . . . . . . . . . . . 1 . . . . . . . . . . . . . . . Recall Assault 2 | . . . . . . . . . . . . . 1 . . . . . 1 . . . . . . . . . . . Hauler Manifests 4 | . 1 . . . 1 . . . . . . . . . 1 . . . . . . . 1 . . . . . . . Registered Components 2 | . . . . . 1 . . . . . . . . . . . . . . . . . 1 . . . . . . . Registered Prototypes 1 | . . . . . . . . . . . . . . . 1 . . . . . . . . . . . . . . . Zone Layout 10 | . . . . . . . . . 1 . . . 1 . 1 . . . 1 1 . . 5 . . . . . . . Fabricator Hacks 18 | . . . . . . . . . 5 . 6 . 3 . 2 . . . 2 . . . . . . . . . . . Load Schematic 9 | . . . . . . . . . 2 . 3 . 1 . 1 . . . 2 . . . . . . . . . . . Build 9 | . . . . . . . . . 3 . 3 . 2 . 1 . . . . . . . . . . . . . . . Repair Station Hacks 15 | . 2 . . . 4 . . . 4 . 3 . . . . . . . 2 . . . . . . . . . . . Scan Component 9 | . 1 . . . 2 . . . 2 . 2 . . . . . . . 2 . . . . . . . . . . . Repair 6 | . 1 . . . 2 . . . 2 . 1 . . . . . . . . . . . . . . . . . . . Recycling Unit Hacks . | . . . . . . . . . . . . . . . . . . . . . . . . . . . . . . . Scanalyzer 19 | . . . . . 4 . . . 8 . 4 . . . . . . . . . . . . 3 . . . . . . Insert Component 9 | . . . . . 2 . . . 4 . 2 . . . . . . . . . . . . 1 . . . . . . Analyze 10 | . . . . . 2 . . . 4 . 2 . . . . . . . . . . . . 2 . . . . . . Garrison Access Hacks 11 | . . . . . 1 . 1 . 1 . 1 . 1 . 3 . 1 . . . . . . 1 . . 1 . . . Unlock Access 8 | . . . . . 1 . 1 . 1 . 1 . 1 . 1 . 1 . . . . . . 1 . . . . . . Seal Access 2 | . . . . . . . . . . . . . . . 1 . . . . . . . . . . . 1 . . . Coupler Status 1 | . . . . . . . . . . . . . . . 1 . . . . . . . . . . . . . . . Unauthorized Hacks 15 | . 1 . . . 2 . . . 1 . 1 . . . 1 . . . 3 3 . . 2 1 . . . . . . Terminals 14 | . 1 . . . 2 . . . 1 . . . . . 1 . . . 3 3 . . 2 1 . . . . . . Botnet 11 | . 1 . . . 1 . . . . . . . . . 1 . . . 3 2 . . 2 1 . . . . . . Disrupt 2 | . . . . . . . . . 1 . . . . . . . . . . 1 . . . . . . . . . . Operators 1 | . . . . . 1 . . . . . . . . . . . . . . . . . . . . . . . . . Fabricators 1 | . . . . . . . . . . . 1 . . . . . . . . . . . . . . . . . . . Siphon 1 | . . . . . . . . . . . 1 . . . . . . . . . . . . . . . . . . . Repair Stations . | . . . . . . . . . . . . . . . . . . . . . . . . . . . . . . . Recycling Units . | . . . . . . . . . . . . . . . . . . . . . . . . . . . . . . . Scanalyzers . | . . . . . . . . . . . . . . . . . . . . . . . . . . . . . . . Garrison Access . | . . . . . . . . . . . . . . . . . . . . . . . . . . . . . . . Data Cores Recovered 1 | . . . . . . . . . . . . . . . . . . . 1 . . . . . . . . . . . Used . | . . . . . . . . . . . . . . . . . . . . . . . . . . . . . . . Hacking Detections 80 | . 8 . . . 10 . 1 . 9 . 4 . 4 . 4 . 1 . 15 5 . . 9 2 . . 1 . 5 2 Full Trace Events 5 | . . . . . . . 1 . . . . . . . 1 . . . 2 . . . 1 . . . . . . . Feedback Events 2 | . . . . . . . 1 . . . . . . . . . . . 1 . . . . . . . . . . . Corruption 2 | . . . . . . . 1 . . . . . . . . . . . 1 . . . . . . . . . . . Feedback Blocked . | . . . . . . . . . . . . . . . . . . . . . . . . . . . . . . . Robot Schematics Acquired . | . . . . . . . . . . . . . . . . . . . . . . . . . . . . . . . Robots Built . | . . . . . . . . . . . . . . . . . . . . . . . . . . . . . . . Matter . | . . . . . . . . . . . . . . . . . . . . . . . . . . . . . . . Time . | . . . . . . . . . . . . . . . . . . . . . . . . . . . . . . . Total Robot Build Rating . | . . . . . . . . . . . . . . . . . . . . . . . . . . . . . . . Part Schematics Acquired 10 | . . . . . 4 . . . 3 . 1 . 1 . . . . . . . . . . 1 . . . . . . Parts Built 16 | . . . . . . . . . 5 . 5 . 4 . 2 . . . . . . . . . . . . . . . Matter 1224 | . . . . . . . . . 394 . 348 . 336 . 146 . . . . . . . . . . . . . . . Time 546 | . . . . . . . . . 171 . 171 . 168 . 36 . . . . . . . . . . . . . . . Total Part Build Rating 50 | . . . . . . . . . 13 . 15 . 16 . 6 . . . . . . . . . . . . . . . Parts Repaired 6 | . 1 . . . 2 . . . 2 . 1 . . . . . . . . . . . . . . . . . . . Time 196 | . 38 . . . 64 . . . 44 . 50 . . . . . . . . . . . . . . . . . . . Parts Recycled . | . . . . . . . . . . . . . . . . . . . . . . . . . . . . . . . Recycled Matter . | . . . . . . . . . . . . . . . . . . . . . . . . . . . . . . . Retrieved Matter . | . . . . . . . . . . . . . . . . . . . . . . . . . . . . . . . Retrieved Components . | . . . . . . . . . . . . . . . . . . . . . . . . . . . . . . . Parts Scanalyzed 9 | . . . . . 2 . . . 4 . 2 . . . . . . . . . . . . 1 . . . . . . Part Schematics Acquired 7 | . . . . . 2 . . . 3 . 1 . . . . . . . . . . . . 1 . . . . . . Parts Damaged 1 | . . . . . . . . . . . . . . . . . . . . . . . . 1 . . . . . . Bothacking | -11 -10 -10 -10 -9 -8 -8 -8 -8 -7 -7 -7 -7 -6 -6 -5 -5 -5 -5 -4 -4 -4 -4 -4 -3 -3 -3 -2 -2 -1 -1 ------------ Run | Scr Mat Min Exi Min Mat Gar Mat Gar Fac Gar Fac Gar Fac Gar Fac Gar Fac Gar Fac Ext Cet Arc Hub Res Gar Qua Res Tes Acc Com Used RIF Installer 8 | . . . . . . 1 . 1 . 1 . 1 . 1 . 1 . 1 . . . . . . 1 . . . . . Coupler Efficiency 1 | . . . . . . . . . . . . . . . . 1 . . . . . . . . . . . . . . Hotswap 1 | . . . . . . . . 1 . . . . . . . . . . . . . . . . . . . . . . Threat Obfuscator 1 | . . . . . . . . . . . . 1 . . . . . . . . . . . . . . . . . . Robot Detection 1 | . . . . . . . . . . . . . . 1 . . . . . . . . . . . . . . . . Patrol Navigation 1 | . . . . . . . . . . . . . . . . . . . . . . . . . 1 . . . . . Structural Interface 1 | . . . . . . . . . . 1 . . . . . . . . . . . . . . . . . . . . Autooverride 1 | . . . . . . . . . . . . . . . . . . 1 . . . . . . . . . . . . Robots Hacked 121 | . . . . . . . . . 6 3 8 2 10 3 13 8 1 2 24 7 3 3 10 . 13 5 . . . . Non-combat 38 | . . . . . . . . . 5 . 5 . 5 . 6 . 1 1 9 3 . 1 2 . . . . . . . Combat 83 | . . . . . . . . . 1 3 3 2 5 3 7 8 . 1 15 4 3 2 8 . 13 5 . . . . Autooverrided 13 | . . . . . . . . . . . . . . . . . . . 4 . . . 1 . 6 2 . . . . Robot Hacks Applied 130 | . . . . . . . . . 7 3 11 2 13 3 15 8 3 3 25 8 3 4 10 . 9 3 . . . . parse_system 5 | . . . . . . . . . . . . . 1 1 . . . . . . 1 . 1 . . 1 . . . . no_distress 3 | . . . . . . . . . . . 1 . . . . . . . 2 . . . . . . . . . . . generate_echo 2 | . . . . . . . . . 1 . . . . . . . 1 . . . . . . . . . . . . . start_evac 1 | . . . . . . . . . . . . . . . . . . . . . . 1 . . . . . . . . find_chute 1 | . . . . . . . . . 1 . . . . . . . . . . . . . . . . . . . . . deconstruct_machine 1 | . . . . . . . . . . . . . 1 . . . . . . . . . . . . . . . . . hold_bot 1 | . . . . . . . . . . . . . . . 1 . . . . . . . . . . . . . . . ignore_repairs 1 | . . . . . . . . . . . . . . . . . . . 1 . . . . . . . . . . . map_walls 3 | . . . . . . . . . 2 . . . . . . . . . 1 . . . . . . . . . . . find_fabricator 1 | . . . . . . . . . . . . . . . . . 1 . . . . . . . . . . . . . drop_inventory 13 | . . . . . . . . . 2 . . . . . 2 . 1 . 4 2 . . 2 . . . . . . . recall_reinforcements 1 | . . . . . . . . . . . . . . . . . . . 1 . . . . . . . . . . . ignore_parts 15 | . . . . . . . . . . . 6 . 5 . 2 . . . 1 1 . . . . . . . . . . check_alert 1 | . . . . . . . . . . . 1 . . . . . . . . . . . . . . . . . . . locate_traps 1 | . . . . . . . . . . . . . . . . . . . . . . 1 . . . . . . . . focus_fire 2 | . . . . . . . . . . . 1 . . . 1 . . . . . . . . . . . . . . . scatter_targeting 7 | . . . . . . . . . . . 1 . 1 . 2 . . . 2 . . . 1 . . . . . . . mark_system 1 | . . . . . . . . . . . . . . . . . . . 1 . . . . . . . . . . . spike_heat 4 | . . . . . . . . . . . . . 1 . 1 . . . 1 . . . . . 1 . . . . . amplify_resonance 5 | . . . . . . . . . 1 . . . 1 . 1 1 . . . . . . . . 1 . . . . . disable_weapons 3 | . . . . . . . . . . 1 . . . . . . . 2 . . . . . . . . . . . . reboot_system 1 | . . . . . . . . . . . . . . . . . . . . . . . 1 . . . . . . . overwrite_iff 33 | . . . . . . . . . . . . 1 2 2 3 6 . . 5 3 2 . 3 . 4 2 . . . . streamctrl_high 1 | . . . . . . . . . . 1 . . . . . . . . . . . . . . . . . . . . formatsys_low 3 | . . . . . . . . . . . . . 1 . 1 . . . 1 . . . . . . . . . . . formatsys_high 20 | . . . . . . . . . . 1 1 1 . . 1 1 . 1 5 2 . 2 2 . 3 . . . . . Relay Couplers Released 132 | . . . . . . 17 . 16 . 14 . 17 . 14 3 14 . 14 6 . . . 1 . 16 . . . . . Machine Destruction 125 | . . . . . . 17 . 16 . 14 . 17 . 14 . 14 . 14 2 . . . 1 . 16 . . . . . Programmers 7 | . . . . . . . . . . . . . . . 3 . . . 4 . . . . . . . . . . . Attached 45 | . . . . . . . . . 2 3 . 1 2 2 2 4 . 5 11 1 . . 1 1 7 1 2 . . . Robots Rewired 15 | . . . . . . 9 . . . . . 6 . . . . . . . . . . . . . . . . . . Allies Hacked 2 | . . . . . . . . . . . . . . . . . . . 2 . . . . . . . . . . . Hacks Repelled . | . . . . . . . . . . . . . . . . . . . . . . . . . . . . . . . Allies | -11 -10 -10 -10 -9 -8 -8 -8 -8 -7 -7 -7 -7 -6 -6 -5 -5 -5 -5 -4 -4 -4 -4 -4 -3 -3 -3 -2 -2 -1 -1 -------- Run | Scr Mat Min Exi Min Mat Gar Mat Gar Fac Gar Fac Gar Fac Gar Fac Gar Fac Gar Fac Ext Cet Arc Hub Res Gar Qua Res Tes Acc Com Total Allies 109 | . . . . . . 9 . . 18 2 1 8 3 2 5 7 . 1 14 13 2 2 6 . 12 4 . . . . Largest Group 18 | . . . . . . 6 3 . 18 1 1 6 3 1 2 2 1 1 2 7 2 2 2 . 2 2 . . . . Highest-Rated Group 751 | . . . . . . 84 63 . 751 32 32 160 80 47 73 78 49 65 98 414 87 128 128 . 112 105 . . . . Highest-Rated Ally 156 | . . . . . . 21 21 . 74 32 32 38 47 47 47 49 49 65 56 156 47 64 64 . 64 58 . . . . Total Orders 9 | . . . . . . . . . . . 3 4 . . . . . . 1 . . . . . 1 . . . . . STAY 5 | . . . . . . . . . . . 2 2 . . . . . . . . . . . . 1 . . . . . FOLLOW 3 | . . . . . . . . . . . 1 2 . . . . . . . . . . . . . . . . . . AID 1 | . . . . . . . . . . . . . . . . . . . 1 . . . . . . . . . . . Ally Attacks 356 | . . . . . . 7 40 . 16 6 6 26 18 7 20 33 1 . 45 41 9 9 38 . 26 8 . . . . Total Damage 10882 | . . . . . . . 1057 . 303 281 274 858 474 155 597 689 24 . 1609 1424 245 278 1439 . 881 294 . . . . Kills 75 | . . . . . . . 13 . 6 . 3 12 3 . 6 5 . . 8 6 1 1 8 . 3 . . . . . Allies Corrupted 2 | . . . . . . . . . . . . . . . . . . . 1 . . . . . . 1 . . . . Allies Melted 3 | . . . . . . . . . . . . . . . . . . . 1 2 . . . . . . . . . . Intel | -11 -10 -10 -10 -9 -8 -8 -8 -8 -7 -7 -7 -7 -6 -6 -5 -5 -5 -5 -4 -4 -4 -4 -4 -3 -3 -3 -2 -2 -1 -1 ------- Run | Scr Mat Min Exi Min Mat Gar Mat Gar Fac Gar Fac Gar Fac Gar Fac Gar Fac Gar Fac Ext Cet Arc Hub Res Gar Qua Res Tes Acc Com Robot Analysis Total 1 | . . . . . 1 . . . . . . . . . . . . . . . . . . . . . . . . . Derelict Logs Recovered . | . . . . . . . . . . . . . . . . . . . . . . . . . . . . . . . Drone Launches . | . . . . . . . . . . . . . . . . . . . . . . . . . . . . . . . Drone Recoveries . | . . . . . . . . . . . . . . . . . . . . . . . . . . . . . . . Exploration | -11 -10 -10 -10 -9 -8 -8 -8 -8 -7 -7 -7 -7 -6 -6 -5 -5 -5 -5 -4 -4 -4 -4 -4 -3 -3 -3 -2 -2 -1 -1 ------------- Run | Scr Mat Min Exi Min Mat Gar Mat Gar Fac Gar Fac Gar Fac Gar Fac Gar Fac Gar Fac Ext Cet Arc Hub Res Gar Qua Res Tes Acc Com Turns Passed 44210 | 4 1189 88 412 153 2353 3756 1148 2800 3866 2641 1789 2075 2073 1722 2136 1919 426 1837 5538 1126 441 240 911 497 1833 296 527 112 163 139 Spaces Moved 16657 | 3 620 53 246 86 916 954 278 652 1158 862 600 737 694 583 654 631 121 596 1884 559 194 123 448 266 785 252 756 221 348 377 Core 467 | . . . . . . . . . . . . . . . . . . . . . . . . . . 179 246 . . 42 Treads 14690 | . 537 53 246 86 916 954 278 652 1158 862 600 737 694 583 654 631 121 596 1884 559 194 123 448 266 785 73 . . . . Legs 89 | 3 83 . . . . . . . . . . . . . . . . . . . . . . . . . . . 3 . Wheels . | . . . . . . . . . . . . . . . . . . . . . . . . . . . . . . . Hover . | . . . . . . . . . . . . . . . . . . . . . . . . . . . . . . . Flight 1411 | . . . . . . . . . . . . . . . . . . . . . . . . . . . 510 221 345 335 Fastest Speed 17 | 120 120 160 160 160 160 360 360 362 259 265 263 263 263 263 263 264 265 265 165 172 167 167 162 158 158 50 50 35 17 25 Average Speed 223 | 120 154 160 160 160 214 360 361 362 261 265 265 263 263 263 263 264 265 265 239 172 167 167 166 158 158 83 57 40 26 28 Slowest Speed 365 | 120 260 160 160 160 360 360 362 362 264 268 365 265 265 263 265 265 265 265 266 172 172 167 170 163 158 170 100 65 120 50 Overloaded Moves . | . . . . . . . . . . . . . . . . . . . . . . . . . . . . . . . Propulsion Burnouts . | . . . . . . . . . . . . . . . . . . . . . . . . . . . . . . . Robots Hopped 18 | . . . . . . . . . . . . . . . . . . . . . . . . . . . 1 2 2 13 Cave-ins Triggered . | . . . . . . . . . . . . . . . . . . . . . . . . . . . . . . . Exploration Rate (%) 53 | 2 97 18 62 27 77 98 24 89 35 87 17 98 22 96 19 97 3 98 51 74 81 94 54 9 95 46 26 33 11 17 Regions Visited 30 Branch Regions 10 Pre-discovered Areas . | . . . . . . . . . . . . . . . . . . . . . . . . . . . . . . . Known Exits Taken 22 | 1 1 1 1 1 1 . 1 . 1 . 1 . 1 . 1 . 1 . 1 1 1 1 1 1 . 1 1 1 1 . Unknown Exits Taken . | . . . . . . . . . . . . . . . . . . . . . . . . . . . . . . . Scrap Searched . | . . . . . . . . . . . . . . . . . . . . . . . . . . . . . . . Spaces Dug 281 | . . . . . . . 1 . 12 3 . 3 8 . 5 . . . 39 5 . 1 175 6 21 . 1 . 1 . Terrain Destroyed 786 | . 1 . . 10 . 95 1 . 91 3 . 54 11 . 8 . . . 126 8 1 1 340 6 23 5 1 . 1 . Melee 38 | . . . . . . . 1 . 11 3 . 3 8 . 5 . . . . 5 . . . . . . 1 . 1 . Projectile 103 | . 1 . . 1 . . . . 4 . . . 3 . 3 . . . 54 3 1 1 3 6 23 . . . . . AOE 645 | . . . . 9 . 95 . . 76 . . 51 . . . . . . 72 . . . 337 . . 5 . . . . Terrain Rammed . | . . . . . . . . . . . . . . . . . . . . . . . . . . . . . . . Walls Destroyed . | . . . . . . . . . . . . . . . . . . . . . . . . . . . . . . . Machines Disabled . | . . . . . . . . . . . . . . . . . . . . . . . . . . . . . . . Actions | -11 -10 -10 -10 -9 -8 -8 -8 -8 -7 -7 -7 -7 -6 -6 -5 -5 -5 -5 -4 -4 -4 -4 -4 -3 -3 -3 -2 -2 -1 -1 --------- Run | Scr Mat Min Exi Min Mat Gar Mat Gar Fac Gar Fac Gar Fac Gar Fac Gar Fac Gar Fac Ext Cet Arc Hub Res Gar Qua Res Tes Acc Com Total 21745 | 3 758 54 267 95 1217 1164 372 934 1812 1093 779 839 860 728 924 809 228 785 2570 677 270 148 559 328 1282 310 844 239 400 397 Wait 2511 | . 44 . . 4 176 43 41 85 449 71 114 24 60 82 122 69 98 91 318 57 25 15 48 16 384 11 24 . 33 7 Move 16592 | 2 619 52 245 85 915 952 277 650 1157 860 599 735 693 581 653 629 120 594 1883 558 193 122 447 265 783 251 753 216 343 360 Hop 9 | . . . . . . . . . . . . . . . . . . . . . . . . . . . 1 2 2 4 Pick Up 264 | . 15 . 5 . 28 21 4 18 17 13 1 9 5 8 5 14 1 13 32 7 6 . 4 11 14 2 9 1 . 1 Fast Attach 145 | . 10 . 3 . 5 1 1 2 9 . 11 2 2 1 9 4 . 2 33 1 . . 5 5 . 4 16 9 10 . Attach 70 | . 2 . 1 . 5 1 . . 4 3 2 2 3 . 6 5 . 5 3 1 3 . 5 3 3 2 7 3 1 . Detach 43 | . 3 . . . 1 . . . 1 2 2 . 1 . 3 3 . 4 8 . . . 1 3 1 1 5 2 2 . Swap 289 | 1 5 . 3 . 16 15 9 10 36 25 17 7 20 8 19 9 3 6 40 5 7 . 7 1 11 6 . . 1 2 Drop 343 | . 12 . 10 . 23 23 12 24 30 15 13 8 12 10 18 13 2 9 37 9 7 . 6 11 10 5 14 5 2 3 Fire 1226 | . 48 2 . 6 47 62 24 135 98 69 19 25 52 34 82 48 4 41 216 26 29 11 36 13 74 21 4 . . . Melee 61 | . . . . . . 2 2 . 11 7 . 3 9 2 6 . . . . 11 . . . . . . 1 1 6 . Ram 16 | . . . . . . . . . . . . . . . . . . . . . . . . . . 7 . . . 9 Kick . | . . . . . . . . . . . . . . . . . . . . . . . . . . . . . . . Crush 5 | . . . . . 1 . 2 . . . . . 2 . . . . . . . . . . . . . . . . . Escape Stasis 107 | . . . . . . 12 . 7 . 26 . 5 . 2 . 14 . 20 . . . . . . . . 10 . . 11 Rewire 64 | . . . . . . 32 . 3 . 2 1 19 1 . 1 1 . . . 2 . . . . 2 . . . . . Trap . | . . . . . . . . . . . . . . . . . . . . . . . . . . . . . . . Miscellaneous . | . . . . . . . . . . . . . . . . . . . . . . . . . . . . . . . Route ------- -11/Scrapyard -10/Materials (discovered 4 exits: *Mat x3 / *Min) -10/Mines -10/Exiles -9/Mines -8/Materials (discovered 3 exits: *Fac x2 / Gar) -8/Garrison (discovered 3 exits: *Mat x3) -8/Materials -8/Garrison (discovered 3 exits: *Fac x3) -7/Factory (discovered 3 exits: *Fac x2 / Gar) -7/Garrison (discovered 3 exits: *Fac x3) -7/Factory (discovered 2 exits: *Fac / Gar) -7/Garrison (discovered 3 exits: *Fac x3) -6/Factory (discovered 2 exits: *Low / Gar) -6/Garrison (discovered 3 exits: *Fac x3) -5/Factory (discovered 3 exits: *Fac / *Upp / Gar) -5/Garrison (discovered 3 exits: *Fac x3) -5/Factory -5/Garrison (discovered 3 exits: *Fac x3) -4/Factory (discovered 8 exits: *Res x3 / *Upp x2 / *Ext x2 / Arm) -4/Extension (discovered 3 exits: *Res x2 / *Cet) -4/Cetus -4/Archives (discovered 3 exits: *Res / *Hub x2) -4/Hub_04(d) (discovered 3 exits: *Res x3) -3/Research (discovered 3 exits: Qua x2 / Gar) -3/Garrison (discovered 3 exits: *Qua x3) -3/Quarantine -2/Research -2/Testing -1/Access (discovered 2 exits: Sur / *Com) -1/Command History --------- Turn | Location | Event 3 | -11/Scrapyard | Identified exit to Materials 3 | -11/Scrapyard | Discovered exit to Materials (range 1) 5 | -11/Scrapyard | Entered Materials 5 | -10/Materials | Evolved 1 slot: Utility x1 101 | -10/Materials | Identified exit to Mines 243 | -10/Materials | Identified exit to Materials 243 | -10/Materials | Discovered exit to Materials (range 3) 347 | -10/Materials | Build established: Hacker-Mutant 721 | -10/Materials | Discovered exit to Materials (range 3) 927 | -10/Materials | Repaired Lgt. Nuclear Core 949 | -10/Materials | Discovered exit to Materials (range 16) 1194 | -10/Materials | Entered Mines 1273 | -10/Mines | Identified exit to Exiles 1273 | -10/Mines | Discovered exit to Exiles (range 3) 1282 | -10/Mines | Entered Exiles 1330 | -10/Exiles | Met 8R-AWN 1353 | -10/Exiles | Met EX-HEX 1399 | -10/Exiles | Met EX-BIN 1421 | -10/Exiles | Aligned with FarCom system 1423 | -10/Exiles | Given EX-Vault access code 1460 | -10/Exiles | Opened EX-Vault 1481 | -10/Exiles | Found Prototype Device 1481 | -10/Exiles | Identified Supersonic Drone Bay 1493 | -10/Exiles | Found Prototype Energy Cannon 1493 | -10/Exiles | Identified Latent Energy Streamer 1534 | -10/Exiles | Exiles lab attacked by MAIN.C 1675 | -10/Exiles | Identified exit to Mines 1675 | -10/Exiles | Discovered exit to Mines (range 14) 1694 | -10/Exiles | Left Exiles lab with Latent Energy Streamer 1694 | -10/Exiles | Entered Mines 1713 | -9/Mines | Met a Derelict bent on vengeance 1729 | -9/Mines | Assembled infested the area 1734 | -9/Mines | Assisted by a Guerilla fighting off Assembled 1794 | -9/Mines | Identified exit to Materials 1794 | -9/Mines | Discovered exit to Materials (range 9) 1847 | -9/Mines | Entered Materials 1847 | -8/Materials | Evolved 4 slots: Propulsion x2, Utility x2 2388 | -8/Materials | Identified exit to Factory 2388 | -8/Materials | Discovered exit to Factory (range 16) 2454 | -8/Materials | Build established: Hacker-Skirmisher 2833 | -8/Materials | Discovered exit to Factory (range 7) 2883 | -8/Materials | Build established: Scavenger-Mutant 3158 | -8/Materials | Repaired Lgt. Nuclear Core 3297 | -8/Materials | Repaired Heat Sink 3462 | -8/Materials | Build established: Hauler-Mutant 4196 | -8/Materials | Identified exit to Garrison 4200 | -8/Materials | Entered Garrison 4465 | -8/Garrison | Phase Generator disabled 4656 | -8/Garrison | Triggered checkpoint 4862 | -8/Garrison | Triggered checkpoint 4906 | -8/Garrison | Triggered checkpoint 5208 | -8/Garrison | Triggered checkpoint 5262 | -8/Garrison | Garrison Relay disabled 5334 | -8/Garrison | Identified exit to Materials 5334 | -8/Garrison | Discovered exit to Materials (range 4) 5434 | -8/Garrison | Spotted B-75 Beast 5864 | -8/Garrison | Discovered exit to Materials (range 15) 5936 | -8/Garrison | Installed Relay Interface Framework 6082 | -8/Garrison | Triggered checkpoint 6202 | -8/Garrison | Garrison Relay disabled 6414 | -8/Garrison | Triggered checkpoint 6528 | -8/Garrison | Discovered exit to Materials (range 10) 6644 | -8/Garrison | Triggered checkpoint 6718 | -8/Garrison | Garrison Relay disabled 7114 | -8/Garrison | Garrison Relay disabled 7224 | -8/Garrison | Triggered checkpoint 7256 | -8/Garrison | Triggered checkpoint 7472 | -8/Garrison | Triggered checkpoint 7956 | -8/Garrison | Entered Materials 7956 | -8/Materials | Accompanied by 3 allies 8356 | -8/Materials | First assault squad dispatched 9099 | -8/Materials | Identified exit to Garrison 9104 | -8/Materials | Entered Garrison 9254 | -8/Garrison | Triggered checkpoint 9314 | -8/Garrison | Garrison Relay disabled 9728 | -8/Garrison | Triggered checkpoint 9835 | -8/Garrison | Triggered checkpoint 9914 | -8/Garrison | Discovered exit to Factory (range 10) 9972 | -8/Garrison | Expanded RIF knowledge: Hotswap 10068 | -8/Garrison | Triggered checkpoint 10115 | -8/Garrison | Garrison Relay disabled 10680 | -8/Garrison | Discovered exit to Factory (range 10) 10856 | -8/Garrison | Triggered checkpoint 10925 | -8/Garrison | Garrison Relay disabled 11205 | -8/Garrison | Discovered exit to Factory (range 11) 11406 | -8/Garrison | Triggered checkpoint 11572 | -8/Garrison | Garrison Relay disabled 11904 | -8/Garrison | Entered Factory 11904 | -7/Factory | Evolved 2 slots: Propulsion x2 11907 | -7/Factory | Identified exit to Factory 11907 | -7/Factory | Discovered exit to Factory (range 8) 11955 | -7/Factory | Repaired Arm. Treads 11982 | -7/Factory | Repaired Lgt. Angular Momentum Engine 12538 | -7/Factory | Cargo convoy interrupted 13167 | -7/Factory | Build established: Bothacker-Mutant 13634 | -7/Factory | Fabricated Humpback (x1) 13707 | -7/Factory | Discovered exit to Factory (range 5) 13817 | -7/Factory | Fabricated Arm. Treads (x2) 13906 | -7/Factory | Fabricated Arm. Treads (x2) 15419 | -7/Factory | Garrison activated, responded to threat 15767 | -7/Factory | Identified exit to Garrison 15770 | -7/Factory | Entered Garrison 15885 | -7/Garrison | Spotted B-75 Beast 15980 | -7/Garrison | Destroyed B-75 Beast 16316 | -7/Garrison | Triggered checkpoint 16435 | -7/Garrison | Garrison Relay disabled 16874 | -7/Garrison | Triggered checkpoint 16926 | -7/Garrison | Triggered checkpoint 17068 | -7/Garrison | Identified exit to Factory 17068 | -7/Garrison | Discovered exit to Factory (range 15) 17178 | -7/Garrison | Triggered checkpoint 17294 | -7/Garrison | Garrison Relay disabled 17479 | -7/Garrison | Triggered checkpoint 17578 | -7/Garrison | Discovered exit to Factory (range 11) 17620 | -7/Garrison | Expanded RIF knowledge: Structural Interface 17732 | -7/Garrison | Triggered checkpoint 18024 | -7/Garrison | Garrison Relay disabled 18154 | -7/Garrison | Triggered checkpoint 18256 | -7/Garrison | Garrison Relay disabled 18355 | -7/Garrison | Discovered exit to Factory (range 15) 18411 | -7/Garrison | Entered Factory 18531 | -7/Factory | Found Prototype Launcher 18531 | -7/Factory | Identified Rocket Array 18623 | -7/Factory | Repaired Adv. Heat Sink 18860 | -7/Factory | Fabricated Arm. Treads (x2) 19028 | -7/Factory | Discovered exit to Factory (range 4) 19571 | -7/Factory | P-60 Hacker assimilated allied Guardian 4c 19708 | -7/Factory | Fabricated Med. Treads (x2) 19782 | -7/Factory | Fabricated Humpback (x1) 20187 | -7/Factory | Identified exit to Garrison 20200 | -7/Factory | Entered Garrison 20408 | -7/Garrison | Phase Generator disabled 20452 | -7/Garrison | Garrison Relay disabled 20671 | -7/Garrison | Triggered checkpoint 20796 | -7/Garrison | Triggered checkpoint 20850 | -7/Garrison | Garrison Relay disabled 20914 | -7/Garrison | Discovered exit to Factory (range 15) 20970 | -7/Garrison | Expanded RIF knowledge: Threat Obfuscation 21242 | -7/Garrison | Triggered checkpoint 21269 | -7/Garrison | Build established: Botlord-Mutant 21559 | -7/Garrison | Discovered exit to Factory (range 10) 21744 | -7/Garrison | Triggered checkpoint 21774 | -7/Garrison | Garrison Relay disabled 21884 | -7/Garrison | Triggered checkpoint 21936 | -7/Garrison | Discovered exit to Factory (range 14) 22072 | -7/Garrison | Triggered checkpoint 22126 | -7/Garrison | Garrison Relay disabled 22275 | -7/Garrison | Entered Factory 22275 | -6/Factory | Accompanied by 3 allies 22275 | -6/Factory | Evolved 2 slots: Utility x2 22727 | -6/Factory | Fabricated Arm. Treads (x2) 23427 | -6/Factory | Identified exit to Lower Caves 23427 | -6/Factory | Discovered exit to Lower Caves (range 3) 23495 | -6/Factory | Fabricated Adv. Heat Sink (x2) 24346 | -6/Factory | Identified exit to Garrison 24348 | -6/Factory | Entered Garrison 24472 | -6/Garrison | Garrison Relay disabled 24570 | -6/Garrison | Triggered checkpoint 24651 | -6/Garrison | Garrison Relay disabled 24711 | -6/Garrison | Identified exit to Factory 24711 | -6/Garrison | Discovered exit to Factory (range 15) 24942 | -6/Garrison | Triggered checkpoint 25182 | -6/Garrison | Triggered checkpoint 25244 | -6/Garrison | Garrison Relay disabled 25327 | -6/Garrison | Discovered exit to Factory (range 13) 25377 | -6/Garrison | Expanded RIF knowledge: Robot Detection 25536 | -6/Garrison | Triggered checkpoint 25607 | -6/Garrison | Discovered exit to Factory (range 11) 25838 | -6/Garrison | Triggered checkpoint 25901 | -6/Garrison | Garrison Relay disabled 26070 | -6/Garrison | Entered Factory 26070 | -5/Factory | Evolved 2 slots: Utility x1, Weapon x1 26296 | -5/Factory | Identified exit to Upper Caves 26296 | -5/Factory | Discovered exit to Upper Caves (range 9) 26671 | -5/Factory | Identified exit to Factory 26671 | -5/Factory | Discovered exit to Factory (range 8) 27291 | -5/Factory | Spotted B-75 Beast 27631 | -5/Factory | Cargo convoy interrupted 28140 | -5/Factory | Fabricated Arm. Treads (x2) 28203 | -5/Factory | Identified exit to Garrison 28206 | -5/Factory | Entered Garrison 28294 | -5/Garrison | Triggered checkpoint 28350 | -5/Garrison | Garrison Relay disabled 28635 | -5/Garrison | Triggered checkpoint 28882 | -5/Garrison | Triggered checkpoint 29039 | -5/Garrison | Garrison Relay disabled 29116 | -5/Garrison | Identified exit to Factory 29116 | -5/Garrison | Discovered exit to Factory (range 10) 29304 | -5/Garrison | Triggered checkpoint 29414 | -5/Garrison | Discovered exit to Factory (range 14) 29464 | -5/Garrison | Expanded RIF knowledge: Coupler Efficiency 29712 | -5/Garrison | Triggered checkpoint 29751 | -5/Garrison | Garrison Relay disabled 30000 | -5/Garrison | Triggered checkpoint 30037 | -5/Garrison | Garrison Relay disabled 30093 | -5/Garrison | Discovered exit to Factory (range 10) 30125 | -5/Garrison | Entered Factory 30125 | -5/Factory | Accompanied by 1 ally 30216 | -5/Factory | Garrison activated, responded to threat 30549 | -5/Factory | Identified exit to Garrison 30551 | -5/Factory | Entered Garrison 30611 | -5/Garrison | Triggered checkpoint 30708 | -5/Garrison | Garrison Relay disabled 30807 | -5/Garrison | Spotted B-75 Beast 30916 | -5/Garrison | Destroyed B-75 Beast 31124 | -5/Garrison | Triggered checkpoint 31167 | -5/Garrison | Build established: Botlord-Skirmisher 31205 | -5/Garrison | Garrison Relay disabled 31301 | -5/Garrison | Discovered exit to Factory (range 15) 31442 | -5/Garrison | Triggered checkpoint 31512 | -5/Garrison | Discovered exit to Factory (range 10) 31564 | -5/Garrison | Expanded RIF knowledge: Autooverride 31608 | -5/Garrison | Triggered checkpoint 31636 | -5/Garrison | Garrison Relay disabled 32083 | -5/Garrison | Discovered exit to Factory (range 7) 32224 | -5/Garrison | Triggered checkpoint 32253 | -5/Garrison | Garrison Relay disabled 32388 | -5/Garrison | Entered Factory 32388 | -4/Factory | Evolved 2 slots: Utility x2 32744 | -4/Factory | Identified exit to Research 32744 | -4/Factory | Discovered exit to Research (range 13) 33043 | -4/Factory | Build established: Botlord-Mutant 34397 | -4/Factory | Spotted B-86 Titan 34421 | -4/Factory | Found Com. Tesla Bomb Launcher 34453 | -4/Factory | Found Com. Tesla Bomb Launcher 35165 | -4/Factory | Discovered exit to Research (range 4) 35338 | -4/Factory | Identified exit to Upper Caves 35338 | -4/Factory | Identified exit to Extension 35338 | -4/Factory | Identified exit to Armory 36350 | -4/Factory | Discovered exit to Research (range 9) 36430 | -4/Factory | Garrison activated, responded to threat 36740 | -4/Factory | System corruption reached 10% 37926 | -4/Factory | Entered Extension 38023 | -4/Extension | Rescued a captive Derelict 38024 | -4/Extension | Rescued a captive Derelict 38180 | -4/Extension | Rescued a captive Derelict 38181 | -4/Extension | Rescued a captive Derelict 38255 | -4/Extension | Rescued a captive Derelict 38257 | -4/Extension | Rescued a captive Derelict 38388 | -4/Extension | Rescued A7 38404 | -4/Extension | Spotted B-86 Titan 38409 | -4/Extension | Spotted B-86 Titan 38456 | -4/Extension | Destroyed B-86 Titan 38465 | -4/Extension | Destroyed B-86 Titan 38530 | -4/Extension | Discovered exit to Research (range 4) 38678 | -4/Extension | Discovered exit to Research (range 16) 38678 | -4/Extension | Identified exit to Cetus 38678 | -4/Extension | Discovered exit to Cetus (range 16) 38775 | -4/Extension | Rescued a captive Derelict 38849 | -4/Extension | Rescued a captive Derelict 39052 | -4/Extension | Disrupted transfer network 39052 | -4/Extension | Entered Cetus 39052 | -4/Cetus | Accompanied by 2 allies 39075 | -4/Cetus | Spotted Cetus Guard 39075 | -4/Cetus | Spotted Cetus Guard 39083 | -4/Cetus | Spotted Cetus Guard 39086 | -4/Cetus | Destroyed Cetus Guard 39093 | -4/Cetus | Destroyed Cetus Guard 39093 | -4/Cetus | Spotted Cetus Guard 39098 | -4/Cetus | Destroyed Cetus Guard 39135 | -4/Cetus | Destroyed Cetus Guard 39438 | -4/Cetus | Identified exit to Archives 39438 | -4/Cetus | Discovered exit to Archives (range 15) 39493 | -4/Cetus | Entered Archives 39571 | -4/Archives | Unable to access archive contents 39575 | -4/Archives | Identified exit to Hub_04(d) 39575 | -4/Archives | Discovered exit to Hub_04(d) (range 16) 39588 | -4/Archives | Unable to access archive contents 39596 | -4/Archives | Discovered exit to Hub_04(d) (range 14) 39610 | -4/Archives | Unable to access archive contents 39616 | -4/Archives | Discovered exit to Research (range 13) 39733 | -4/Archives | Entered Hub_04(d) 39733 | -4/Hub_04(d) | Accompanied by 2 allies 39733 | -4/Hub_04(d) | Discovered exit to Research (range 10) 40287 | -4/Hub_04(d) | Discovered exit to Research (range 9) 40386 | -4/Hub_04(d) | Discovered exit to Research (range 10) 40401 | -4/Hub_04(d) | Found Prototype Hackware 40551 | -4/Hub_04(d) | Identified Exp. System Shield 40586 | -4/Hub_04(d) | Network Hub disabled 40592 | -4/Hub_04(d) | Spotted Lightning 40594 | -4/Hub_04(d) | Spotted Lightning 40594 | -4/Hub_04(d) | Spotted Lightning 40596 | -4/Hub_04(d) | Spotted Lightning 40597 | -4/Hub_04(d) | Spotted Lightning 40598 | -4/Hub_04(d) | Spotted Lightning 40605 | -4/Hub_04(d) | Network Hub disabled 40605 | -4/Hub_04(d) | Spotted Lightning 40605 | -4/Hub_04(d) | Spotted Lightning 40605 | -4/Hub_04(d) | Spotted Lightning 40610 | -4/Hub_04(d) | Spotted Lightning 40622 | -4/Hub_04(d) | System corruption reached 30% 40644 | -4/Hub_04(d) | Entered Research 40644 | -3/Research | Evolved 2 slots: Utility x2 40669 | -3/Research | Lost 3 parts (1p1n1w) 40808 | -3/Research | Identified exit to Quarantine 41139 | -3/Research | Identified exit to Garrison 41141 | -3/Research | Entered Garrison 41211 | -3/Garrison | Garrison Relay disabled 41400 | -3/Garrison | Triggered checkpoint 41408 | -3/Garrison | Spotted B-86 Titan 42266 | -3/Garrison | Triggered checkpoint 42300 | -3/Garrison | Garrison Relay disabled 42353 | -3/Garrison | Discovered exit to Quarantine (range 12) 42519 | -3/Garrison | Spotted B-86 Titan 42555 | -3/Garrison | Discovered exit to Quarantine (range 5) 42686 | -3/Garrison | Garrison Relay disabled 42700 | -3/Garrison | Triggered checkpoint 42814 | -3/Garrison | Discovered exit to Quarantine (range 10) 42836 | -3/Garrison | Expanded RIF knowledge: Patrol Navigation 42872 | -3/Garrison | Triggered checkpoint 42903 | -3/Garrison | Garrison Relay disabled 42974 | -3/Garrison | Entered Quarantine 42975 | -3/Quarantine | Maximum security lockdown engaged 43043 | -3/Quarantine | Found Alien Artifact 43166 | -3/Quarantine | Identified Phase Redirector 43168 | -3/Quarantine | Released all parts (15) 43177 | -3/Quarantine | Core integrity fell below 50% 43196 | -3/Quarantine | Core integrity fell below 20% 43259 | -3/Quarantine | Identified exit to Research 43259 | -3/Quarantine | Discovered exit to Research (range 12) 43270 | -3/Quarantine | Entered Research 43270 | -2/Research | Evolved 2 slots: Power x1, Utility x1 43460 | -2/Research | Build established: Hacker-Mutant 43520 | -2/Research | First assault squad dispatched 43744 | -2/Research | Spotted B-90 Cyclops 43790 | -2/Research | Identified exit to Testing 43790 | -2/Research | Discovered exit to Testing (range 11) 43797 | -2/Research | Entered Testing 43798 | -2/Testing | Maximum security lockdown engaged 43857 | -2/Testing | Found Unknown Protection 43857 | -2/Testing | Identified Adv. Powered Armor 43889 | -2/Testing | Found Prototype Energy Cannon 43889 | -2/Testing | Identified Cld. Nova Cannon 43903 | -2/Testing | Identified exit to Access 43903 | -2/Testing | Discovered exit to Access (range 15) 43909 | -2/Testing | Entered Access 43909 | -1/Access | Evolved 2 slots: Propulsion x2 43972 | -1/Access | Identified exit to Surface 44070 | -1/Access | Identified exit to Command 44070 | -1/Access | Discovered exit to Command (range 8) 44072 | -1/Access | Entered Command 44118 | -1/Command | Spotted M Guard 44118 | -1/Command | Spotted M Guard 44118 | -1/Command | Spotted Combat Programmer 44118 | -1/Command | Spotted Combat Programmer 44165 | -1/Command | Spotted B-99 Colossus 44178 | -1/Command | Core integrity fell below 50% 44194 | -1/Command | System corruption reached 10% 44204 | -1/Command | Core integrity fell below 20% 44210 | -1/Command | Lost 14 parts (2p7n4u1w) 44211 | -1/Command | Core destroyed Last Messages --------------- 44189_ Critical hit (Burn: +37). 44191_ Penetrated by EMDS Slug. 44191_ Door malfunctions. 44193_ Penetrated by EMDS Slug. 44201_ EMDS Slug penetrates Wall. 44202_ Slammed into P-80 Master. 44203_ Penetrated by EMDS Slug. 44203_ P-80 Master resets Combat Programmer, system corruption cleaned. 44204_ P-80 Master resets P-80 Master, system corruption cleaned. 44204_ Slammed into P-80 Master. 44205_ Slammed into G-73 Enforcer. 44205_ Penetrated by EMDS Slug. 44205_ P-80 Master resets P-80 Master, system corruption cleaned. 44206_ Slammed into G-73 Enforcer. 44206_ Destabilizing: System corrupted (+1). 44207_ P-80 Master resets P-80 Master, system corruption cleaned. 44207_ Slammed into G-73 Enforcer. 44209_ Slammed into P-80 Master. 44211_ Destabilizing: Core damaged (-32). [Achievement: Torch] Map ----- +----------------------------------------------------+ | | | | | | | | | | | | | | | | | | | | | | | | | | | | | | | | | | | #######?#??############??????????????????????????? | | #?? #??????????????????????????? | | ! ??? """ #??????????????????????????? | | ????# T""" #???????????#########??????? | | ??????? """" #??????????# #??????? | | ???????????"" #????####### #??????? | | ????????????? g ppp #????# # ""#??????? | | ###############p#####p######pp # ""#??????? | | pl gp p pggggppp@pgpp / "#??????? | | % phgpsggh############ppp # ""#??????? | | ################??????????# p # [ ""#??????? | | #?????????????????????????###+### #??????? | | ######????????????????????? # #??????? | | ##################### ##########??????? | | ## #???????????????? | | ####+####?????# ## #???????????????? | | #???????# ##+##############???????????????? | | #???????# # #??????????????????? | | """ #???????# # % #??????????????????? | | """ #???????# # = #??????????????????? | | """ #???????# # = #??????????????????? | | """ = #???????# # = #??????????????????? | | #???????# # #??????????????????? | | #???????# # "" #??????????????????? | | ############### # """" #??????????????????? | | # # """" #??????????????????? | | # # "" #??????????????????? | | # # #??????????????????? | | # # #??????????????????? | | # ##############??????????????????? | | """"T"""" # #???????????????????????????????? | | """""""""" # #???????????????????????????????? | | ############### #???????????????????????????????? | +----------------------------------------------------+ Best States ------------- Heat Dissipation 81 Coolant Potential 50 Energy Generation 41 Energy Capacity 410 Matter Stores 300 Matter Capacity 300 Sight Range 23 Robot Scan Range 14 Terrain Scan Range 24 Terrain Scan Density 210 ECM Strength 2 Additional Mass Support 9 Base Temperature (-) 200 Armor Coverage 450 Resistance: KI 65 Resistance: TH 35 Resistance: EX 35 Resistance: EM 35 Resistance: I 35 Resistance: S 35 Resistance: P 35 Core Shielding 20 Reclamation Efficiency 20 Evasion (%) 65 Targeting Accuracy 16 Recoil Reduction 6 Particle Charging 20 Overload Amplification 100 Offensive Hacking 20 Defensive Hacking 16 Relay Coupler Types 263 Relay Coupler Value 5 Item Schematics ----------------- Humpback | -8/Materials | Scanalyzed Imp. Targeting Computer | -8/Materials | Scanalyzed Arm. Treads | -8/Materials | Hacked Datajack | -8/Materials | Hacked Enh. Nuclear Core | -7/Factory | Scanalyzed Remote Datajack | -7/Factory | Scanalyzed Disposable Heat Sink | -7/Factory | Scanalyzed Med. Treads | -7/Factory | Scanalyzed Adv. Cryofiber Web | -6/Factory | Hacked Biometal Medium Treads | -3/Research | Scanalyzed Robot Schematics ------------------ None Fabricated ------------ Humpback | x1 | -7/Factory Arm. Treads | x2 | -7/Factory Arm. Treads | x2 | -7/Factory Arm. Treads | x2 | -7/Factory Med. Treads | x2 | -7/Factory Humpback | x1 | -7/Factory Arm. Treads | x2 | -6/Factory Adv. Heat Sink | x2 | -6/Factory | Preloaded Arm. Treads | x2 | -5/Factory Alien Tech Used ----------------- Phase Redirector Achievements -------------- Streaker Torch Z1$+NX3F=JRE3_ZNQR Challenges ------------ None Game ------ Seed SigixXenonShotgun Manual? 0 Play Time 07:55:05 Cumulative 233.8 hours Start 2021.06.04 @ 22:02:42 End 2021.06.14 @ 21:28:18 Sessions 9 Manual Loads 0 Difficulty Explorer Special Mode None Game No. 93 Rogue 68 Adventurer 0 Explorer 25 Win Type - Total 7 Types 5/1/1/0/0/0/0/0/0 Lore% 65 Gallery% 70 Achievement% 60 Wizard Run 0 Options --------- ASCII 1 Keyboard 1 Movement Numpad Keybinds 0 Fullscreen 1 Font 18/SmallcapsGlow Map View 76x50 Tactical HUD 1 Map Filters NONE Filters NONE Steam 1 RUN: 63cb58e3-46fe-4426-96b7-320594a64c60